Cogmind - Beta 11.1 @@@ ROGUE MODE // 2022.11.11 @ 04:07:48 Player: Infomantis Result: Escaped! Performance ------------- Evolutions (9) 4500 Regions Visited (17) 3400 Robots Destroyed (154) 770 Value Destroyed (5649) 5649 Prototype IDs (19) 380 Alien Tech Used (0) 0 Bonus (27739) 27739 TOTAL SCORE: 42438 Bonus ------- Pure Core 5946 Scavenger 9000 High Alert Combat Kills 284 Follower Combat Kills 1761 Network Hubs Disabled 200 Built Enhanced Grunts 300 A7 Reached Mainframe 300 Met R17 at Cetus 500 Win 3000 Challenge Win 7000 Friendly Fire -552 Cogmind --------- Core Integrity 1055/1600 Matter 300/300 Energy 12/100 System Corruption 10% Temperature Cool (8) Movement Hovering (52) Location To Epsilon Eridani Parts ------- > --- POWER (3) -------- (None) > --- PROPULSION (8) --- Combat Linear Gravjet Combat Linear Gravjet Combat Linear Gravjet > --- UTILITY (11) ----- Advanced Heat Sink Advanced Heat Sink Structural Scanner Advanced Visual Processing Unit Advanced Signal Interpreter Advanced Target Analyzer Graphene Brace Hacking Suite Hacking Suite System Shield > --- WEAPON (3) ------- Enhanced Force Lance > --- INVENTORY (0) ---- (None) Peak State ------------ > --- POWER ------------ Micro Antimatter Reactor Quantum Reactor Quantum Reactor > --- PROPULSION ------- Improved Antigrav System Improved Antigrav System Improved Antigrav System Combat Linear Gravjet Combat Linear Gravjet Combat Linear Gravjet Combat Linear Gravjet Combat Linear Gravjet > --- UTILITY ---------- Advanced Heat Sink Advanced Heat Sink Advanced Heat Sink Structural Scanner Advanced Visual Processing Unit Advanced Signal Interpreter Advanced ECM Suite Advanced Reaction Control System Graphene Brace Hacking Suite Hacking Suite > --- WEAPON ----------- Gamma Rifle Advanced Remote Datajack Enhanced Force Lance > --- INVENTORY -------- (None) [Rating: 164] Favorites ----------- Power Quantum Reactor Engine Light Ion Engine Power Core Neutrino Core Reactor Quantum Reactor Propulsion Compact Wheel Treads Centrium Heavy Treads Leg Aluminum Leg Wheel Compact Wheel Hover Unit Combat Linear Gravjet Flight Unit VTOL Module Utility Transmission Jammer Device Transmission Jammer Processor Advanced Targeting Computer Hackware Hacking Suite Protection Improved Light Armor Plating Weapon Flak Gun Energy Gun Advanced Plasma Rifle Energy Cannon Neutron Cannon Ballistic Gun Flak Gun Ballistic Cannon Improved Light Cannon Launcher Long-range Missile Launcher Special Weapon Remote Datajack Piercing Weapon Enhanced Force Lance Build | -11 -10 -9 -8 -7 -7 -7 -6 -6 -6 -6 -6 -5 -4 -3 -3 -2 -1 ------- Run | Scr Mat Mat Mat Fac Low Low Fac Ext Cet Arc Hub Fac Fac Res Arm Res Acc Slots Evolved 18 | . . 2 2 2 . . 2 . . . . 2 2 2 . 2 2 Power 2 | . . . . 1 . . . . . . . . . . . 1 . Propulsion 6 | . . 1 . 1 . . 1 . . . . . . 1 . 1 1 Utility 9 | . . 1 1 . . . 1 . . . . 2 2 1 . . 1 Weapon 1 | . . . 1 . . . . . . . . . . . . . . Parts Attached 265 | 7 14 8 11 31 4 1 18 22 11 3 2 11 12 21 16 25 48 Power 46 | 1 3 . 1 4 3 . 2 7 4 . . 1 . 2 2 5 11 Engine 16 | 1 3 . . 3 2 . 2 4 1 . . . . . . . . Core 7 | . . . 1 1 1 . . 3 . . . 1 . . . . . Reactor 23 | . . . . . . . . . 3 . . . . 2 2 5 11 Propulsion 68 | 2 3 3 4 13 1 . 7 5 3 2 2 . 2 5 6 5 5 Treads 10 | . . . . 1 . . 1 1 1 2 . . 1 3 . . . Leg 16 | 2 3 2 4 2 . . 1 1 1 . . . . . . . . Wheel 19 | . . 1 . 5 . . 5 3 . . 2 . 1 2 . . . Hover 17 | . . . . . 1 . . . . . . . . . 6 5 5 Flight 6 | . . . . 5 . . . . 1 . . . . . . . . Utility 91 | 2 3 3 4 10 . 1 7 3 2 . . 5 7 10 3 11 20 Device 53 | 2 2 1 . 6 . . 4 1 1 . . 4 6 4 3 7 12 Storage . | . . . . . . . . . . . . . . . . . . Processor 15 | . . 1 2 1 . . 1 . . . . 1 . 3 . 1 5 Hackware 7 | . 1 1 . 1 . . . . . . . . . 2 . . 2 Protection 16 | . . . 2 2 . 1 2 2 1 . . . 1 1 . 3 1 Artifact . | . . . . . . . . . . . . . . . . . . Weapon 60 | 2 5 2 2 4 . . 2 7 2 1 . 5 3 4 5 4 12 Energy Gun 20 | . 1 . . 2 . . . 2 1 . . 1 . 1 5 1 6 Energy Cannon 12 | . . . . . . . . . 1 . . 3 2 3 . . 3 Ballistic Gun 19 | 2 . 2 2 2 . . . 5 . 1 . 1 1 . . 3 . Ballistic Cannon 5 | . 4 . . . . . 1 . . . . . . . . . . Launcher 1 | . . . . . . . 1 . . . . . . . . . . Special Weapon 2 | . . . . . . . . . . . . . . . . . 2 Impact Weapon . | . . . . . . . . . . . . . . . . . . Slashing Weapon . | . . . . . . . . . . . . . . . . . . Piercing Weapon 1 | . . . . . . . . . . . . . . . . . 1 Special Melee Weapon . | . . . . . . . . . . . . . . . . . . Unidentified Prototypes 17 | . 2 . 1 2 . . . . 4 . . 1 1 1 1 4 . Parts Lost 91 | . 1 . 4 8 . . 4 1 4 . . 1 7 11 2 14 34 Power 18 | . . . 1 1 . . 2 . 1 . . . . 2 2 2 7 Propulsion 26 | . . . 2 4 . . 2 1 2 . . . 2 3 . 2 8 Utility 33 | . 1 . 1 2 . . . . 1 . . 1 4 2 . 9 12 Weapon 14 | . . . . 1 . . . . . . . . 1 4 . 1 7 Highest Loss Streak 12 | . 1 . 2 4 . . 2 1 2 . . 1 6 9 1 4 12 To Critical Strikes . | . . . . . . . . . . . . . . . . . . Average Slot Usage (%) 91 | . 97 97 92 89 99 100 91 99 90 92 93 90 90 82 90 79 86 Engine 4 | . 14 11 3 8 8 15 7 7 5 . . . . . . . . Core 2 | . . . 4 3 5 . . 5 . . . 3 5 2 . . . Reactor 4 | . . . . . . . . . 6 13 13 7 5 4 8 7 11 Treads 3 | . . . . . . . 4 9 6 11 9 5 5 8 3 . . Leg 6 | . 28 30 22 9 12 7 2 4 . . . . . . . . . Wheel 9 | . . 1 3 6 15 15 19 18 17 13 16 17 14 11 3 . . Hover 5 | . . . . . 2 7 2 . . . . . . . 17 28 25 Device 19 | . 24 17 1 5 15 15 19 20 19 20 20 23 29 24 20 16 25 Processor 7 | . . 4 17 11 7 7 6 6 6 6 6 7 9 9 12 5 6 Hackware 3 | . 1 11 9 8 7 . . . . . . . . 3 9 4 5 Protection 3 | . . . 3 3 . 6 6 6 5 6 6 5 4 3 . 2 2 Energy Gun 3 | . . . . 3 . . . 5 6 6 6 3 . . 13 9 3 Energy Cannon 2 | . . . . . . . . . 1 6 6 6 13 6 . . 2 Ballistic Gun 8 | . 1 . 24 17 23 23 13 12 11 6 6 5 . 3 . 2 . Ballistic Cannon 2 | . 25 21 . . . . 3 . . . . . . . . . . Naked Turns . | . . . . . . . . . . . . . . . . . . Heaviest Build 99 | 10 18 18 18 24 31 25 32 44 65 66 66 73 80 88 46 85 99 Greatest Support 121 | 20 20 30 30 30 20 20 58 48 48 32 48 48 48 48 102 109 121 Greatest Overweight (x) 5 | . . 1 1 5 1 1 1 1 2 2 2 1 2 2 1 1 1 Average Overweight (x) . | . . . . . . 1 . . 1 2 1 1 1 1 . . . Largest Inventory Capacity . | . . . . . . . . . . . . . . . . . . Average Capacity . | . . . . . . . . . . . . . . . . . . Most Carried . | . . . . . . . . . . . . . . . . . . Average Carried . | . . . . . . . . . . . . . . . . . . Final Capacity . | . . . . . . . . . . . . . . . . . . Final Carried . | . . . . . . . . . . . . . . . . . . Class Distribution -------------------- 38% | Scavenger-Gunner 24% | Scavenger-Mutant 13% | Scavenger-Tank 5% | Mutant 4% | Scavenger-Sprinter Dominant Class ---------------- Mutant | -10/Materials Scavenger-Mutant | -9/Materials Scavenger-Gunner | -8/Materials Scavenger-Gunner | -7/Factory Scavenger-Gunner | -7/Lower Caves Scavenger-Gunner | -7/Lower Caves Scavenger-Gunner | -6/Factory Scavenger-Gunner | -6/Extension Scavenger-Gunner | -6/Cetus Scavenger-Gunner | -6/Archives Scavenger-Mutant | -6/Hub_04(d) Scavenger-Gunner | -5/Factory Scavenger-Tank | -4/Factory Scavenger-Tank | -3/Research Hacker-Mutant | -3/Armory Scavenger-Tank | -2/Research Scavenger-Sprinter | -1/Access Resources | -11 -10 -9 -8 -7 -7 -7 -6 -6 -6 -6 -6 -5 -4 -3 -3 -2 -1 ----------- Run | Scr Mat Mat Mat Fac Low Low Fac Ext Cet Arc Hub Fac Fac Res Arm Res Acc Matter Collected 5252 | 230 393 426 352 801 331 170 393 600 160 50 62 156 119 218 . 425 366 Remotely . | . . . . . . . . . . . . . . . . . . Salvage Created 7251 | 11 313 455 425 871 197 241 628 606 52 24 204 402 749 524 15 679 855 Parts 356 | 5 29 29 21 47 4 3 15 30 3 1 7 16 32 23 3 45 43 Haulers Intercepted 5 | . . 1 1 2 . . . . . . . 1 . . . . . Recyclers Shooed 14 | . 1 1 . . . . 4 2 . . 2 . . . . 4 . Parts Field Recycled . | . . . . . . . . . . . . . . . . . . Retrieved Matter . | . . . . . . . . . . . . . . . . . . Parts Self-Destructed 10 | . . . . . 3 7 . . . . . . . . . . . Prevented . | . . . . . . . . . . . . . . . . . . Kills | -11 -10 -9 -8 -7 -7 -7 -6 -6 -6 -6 -6 -5 -4 -3 -3 -2 -1 ------- Run | Scr Mat Mat Mat Fac Low Low Fac Ext Cet Arc Hub Fac Fac Res Arm Res Acc Combat Hostiles Destroyed 94 | . 8 9 8 17 1 2 2 8 . . . 4 11 4 1 10 9 Melee 4 | . . . . . . . . . . . . . . . 1 . 3 Guns 55 | . . . 8 16 1 2 1 8 . . . 2 . 3 . 9 5 Cannons 31 | . 8 9 . . . . 1 . . . . 2 10 1 . . . AOE 2 | . . . . 1 . . . . . . . . 1 . . . . Classes Destroyed 17 | 1 5 4 . 4 2 . . . . . . . . . 1 . . Worker 9 | . . 1 . 2 . . 3 1 . . . . . . . 1 1 Builder 3 | . 1 . . 1 . . . . . . . . . . . 1 . Tunneler 3 | 1 . 1 . . . . . 1 . . . . . . . . . Hauler 5 | . . 1 1 2 . . . . . . . 1 . . . . . Recycler 15 | . 1 1 . 1 . . 4 2 . . 1 . 2 2 . . 1 Mechanic 2 | . . . . 1 . . . . . . . . . . . . 1 Operator 7 | . 1 1 1 1 . . . 1 . 1 . . 1 . . . . Watcher 15 | . 1 1 1 1 . . 2 . . . 2 1 1 1 . 1 3 Swarmer 25 | . . . . 8 . 1 . 2 . . . . 5 . . 5 4 Saboteur 1 | . . . . . . . . . . . . . . . 1 . . Grunt 27 | . 8 4 5 5 . . . 3 . . . 2 . . . . . Brawler 4 | . . 1 1 . . . . . . . . . 2 . . . . Duelist 1 | . . . . 1 . . . . . . . . . . . . . Sentry 21 | . . 4 2 2 . 1 1 3 . . . 2 . 1 . 3 2 Hunter 4 | . . . . 1 . . 1 . . . . . 2 . . . . Programmer 11 | . . . . . 1 . . . . . . . 2 3 . 2 3 Decomposer 2 | . . . . . 2 . . . . . . . . . . . . Packrat 3 | . . . . . . 3 . . . . . . . . . . . Samaritan 3 | . . . . . 3 . . . . . . . . . . . . Thug 1 | . . . . . . . . . 1 . . . . . . . . Best Kill Streak 9 | 1 4 8 3 9 1 1 5 4 . 1 2 2 5 3 1 4 4 Combat Bots Only 9 | . 3 7 3 9 1 1 1 3 . . . 2 5 2 1 4 4 Max Kills in Single Turn 3 | 1 2 2 2 3 1 1 2 2 1 1 1 1 1 1 1 1 1 Gunslinging 1 | . . . . . . . . 1 . . . . . . . . . Exploded 1 | . . . . 1 . . . . . . . . 1 . . . . Melee 1 | . . . . . . . . . . . . . . . 1 . 1 Uniques/NPCs Destroyed . | . . . . . . . . . . . . . . . . . . Combat | -11 -10 -9 -8 -7 -7 -7 -6 -6 -6 -6 -6 -5 -4 -3 -3 -2 -1 -------- Run | Scr Mat Mat Mat Fac Low Low Fac Ext Cet Arc Hub Fac Fac Res Arm Res Acc Damage Taken 13027 | . 408 406 526 1342 70 165 537 477 591 148 197 332 862 1498 281 1854 3333 Core 1607 | . 129 15 51 292 . . 54 57 19 . 18 26 100 92 40 169 545 Absorbed by Shields 937 | . . . . 93 . . . 53 83 . . . 318 166 . 224 . Redirected to Shielding 66 | . . . . . . . . . . . . . . . . . 66 Regen/Repaired (Parts) 312 | . . . 129 39 . . . . . . . . . . . . 144 Core Remaining (%) 82 | 100 48 96 90 . . 58 . . . . 82 97 91 . 89 88 65 Volleys Fired 419 | 8 36 38 24 55 16 11 24 33 7 6 11 17 36 18 17 37 25 Largest 3 | 2 2 2 3 3 3 3 3 3 3 3 3 3 3 3 3 3 3 Hottest 330 | 40 78 78 75 109 81 81 81 133 136 203 330 204 215 170 270 264 266 Shots Fired 1036 | 16 67 76 71 152 38 33 63 99 21 17 23 47 87 44 30 91 61 Gun 741 | 16 . . 71 152 38 33 60 99 21 12 20 30 1 18 30 91 49 Cannon 295 | . 67 76 . . . . 3 . . 5 3 17 86 26 . . 12 Launcher . | . . . . . . . . . . . . . . . . . . Special . | . . . . . . . . . . . . . . . . . . Kinetic 635 | 16 67 76 71 115 38 33 63 66 14 6 9 15 1 18 . 21 6 Thermal 393 | . . . . 29 . . . 33 7 11 14 32 86 26 30 70 55 Explosive . | . . . . . . . . . . . . . . . . . . Electromagnetic 8 | . . . . 8 . . . . . . . . . . . . . Robot Hit Streak 16 | 5 7 6 10 14 16 6 11 13 13 7 6 7 10 5 . 16 8 Robot Miss Streak 9 | 2 4 4 4 8 3 7 6 5 3 4 2 3 4 3 4 9 3 Penetration Max 1 | . . . . . . . . . . . 1 1 . . . 1 . Secondary Targets 9 | . . . . 7 . . . 2 . . . . . . . . . Max Gunslinging Chain 1 | . . . . 1 . . . 1 . . . . . . . . . Shots Hit Robots 647 | 11 35 39 50 99 29 23 52 71 16 10 12 28 40 24 . 60 48 Core Hits 477 | 2 12 19 26 79 22 25 60 81 26 10 7 13 24 14 1 31 25 Critical Kills 2 | . . . . . . . . . . . . . 1 1 . . . Critical Parts Destroyed 1 | . . . . . . . . . . . . 1 . . . . . Critical Strikes 20 | . 3 2 . . . . . 2 . . . 2 1 1 . 4 5 Burn 8 | . . . . . . . . 2 . . . 1 . . . 4 1 Meltdown 1 | . . . . . . . . . . . . . 1 . . . . Destroy 2 | . . . . . . . . . . . . 1 . 1 . . . Blast 5 | . 3 2 . . . . . . . . . . . . . . . Impale 4 | . . . . . . . . . . . . . . . . . 4 Melee Attacks 25 | . . . . . . . . . . . . . . . . . 25 Impact . | . . . . . . . . . . . . . . . . . . Slashing . | . . . . . . . . . . . . . . . . . . Piercing 25 | . . . . . . . . . . . . . . . . . 25 Sneak Attacks 2 | . . . . . . . . . . . . . . . . . 2 Combat Hostiles . | . . . . . . . . . . . . . . . . . . Follow-up Attacks . | . . . . . . . . . . . . . . . . . . Damage Inflicted 17763 | 108 815 904 1015 1995 636 374 965 1765 561 429 448 943 1796 1101 27 2027 1854 Guns 11138 | 108 . . 1014 1817 636 374 914 1765 561 152 377 499 . 313 27 1824 757 Cannons 4626 | . 815 904 . . . . 51 . . 151 63 423 1529 453 . . 237 Explosions 893 | . . . . 178 . . . . . 126 . . 267 322 . . . Melee 860 | . . . . . . . . . . . . . . . . . 860 Ramming 246 | . . . 1 . . . . . . . 8 21 . 13 . 203 . Kinetic 9234 | 108 815 904 1014 1331 636 374 965 1298 397 130 138 328 . 313 . 412 71 Thermal 6957 | . . . . 520 . . . 467 164 299 302 594 1796 453 27 1412 923 Explosive 322 | . . . . . . . . . . . . . . 322 . . . Electromagnetic 144 | . . . . 144 . . . . . . . . . . . . . Impact . | . . . . . . . . . . . . . . . . . . Slashing . | . . . . . . . . . . . . . . . . . . Piercing 860 | . . . . . . . . . . . . . . . . . 860 Highest Corruption 12 | . . . . 1 4 4 . . . . 1 . 12 12 12 8 9 Average Corruption 5 | . . . . 1 1 4 . . . . 1 . 5 10 12 7 2 Corruption Purged . | . . . . . . . . . . . . . . . . . . Corruption Blocked . | . . . . . . . . . . . . . . . . . . Effects 64 | . . . . 7 6 4 . . . . . . 4 7 18 16 2 Message Errors 15 | . . . . 1 1 . . . . . . . 1 1 6 4 1 Matter Fused 14 | . . . . 3 2 1 . . . . . . . 3 3 1 1 Heat Flow Errors 8 | . . . . 1 . 1 . . . . . . 1 2 1 2 . Energy Discharges 12 | . . . . . 2 2 . . . . . . 1 1 3 3 . Parts Rejected 2 | . . . . 1 . . . . . . . . . . . 1 . Data Loss (minor) 4 | . . . . 1 . . . . . . . . 1 . 1 1 . Data Loss (major) 3 | . . . . . 1 . . . . . . . . . 1 1 . Misfires 2 | . . . . . . . . . . . . . . . 2 . . Misdirections 1 | . . . . . . . . . . . . . . . 1 . . Weapon Failures 3 | . . . . . . . . . . . . . . . . 3 . Overload Shots 2 | . . . . . . . . . . . 2 . . . . . . Overflow Damage 243 | . 49 4 . . . . . . . 10 . 15 71 76 . . 18 Projectiles 130 | . 49 4 . . . . . . . . . 15 38 24 . . . Explosions 95 | . . . . . . . . . . 10 . . 33 52 . . . Melee 18 | . . . . . . . . . . . . . . . . . 18 Knockbacks 10 | . 8 . . . . . . . . . 1 . . . . 1 . Impact 2 | . . . . . . . . . . . 1 . . . . 1 . Kinetic 8 | . 8 . . . . . . . . . . . . . . . . Secondary . | . . . . . . . . . . . . . . . . . . Self-Inflicted Damage 319 | . . . . 27 . . . . . 47 4 10 66 67 . 98 . Shots 4 | . . . . 1 . . . . . 1 . . 1 1 . . . Rammed 17 | . . . . . . . . . . . 1 2 . 1 . 13 . Targets Rammed 18 | . . . 1 . . . . . . . 1 2 . 1 . 13 . Kicked 1 | . . . 1 . . . . . . . . . . . . . . Crushed . | . . . . . . . . . . . . . . . . . . Highest Temperature 529 | . 359 90 116 529 20 184 8 55 18 147 201 139 193 102 51 434 313 Average Temperature 94 | . 136 31 41 145 12 32 3 20 10 71 90 60 81 67 51 122 89 Received Heat Transfer 1684 | . 231 111 243 270 9 36 36 161 98 18 27 90 . 54 18 156 126 Effects 20 | . 3 . . 6 . . . . . . . . . . . 6 5 Shutdowns 3 | . . . . 1 . . . . . . . . . . . 2 . Energy Bleed 3 | . 2 . . . . . . . . . . . . . . 1 . Interference 11 | . 1 . . 2 . . . . . . . . . . . 3 5 Matter Decay 1 | . . . . 1 . . . . . . . . . . . . . Damage (major) 1 | . . . . 1 . . . . . . . . . . . . . Damage (core) 1 | . . . . 1 . . . . . . . . . . . . . Siege Activations . | . . . . . . . . . . . . . . . . . . Robots Corrupted . | . . . . . . . . . . . . . . . . . . Combat Hostiles . | . . . . . . . . . . . . . . . . . . Parts Fried 1 | . . . . 1 . . . . . . . . . . . . . Impact Corruptions . | . . . . . . . . . . . . . . . . . . Robots Melted 3 | . . . . . . . . . . . . . 1 . . 1 1 Combat Hostiles 2 | . . . . . . . . . . . . . . . . 1 1 Parts Melted 19 | . . . . . . . . . . . 4 . 4 1 . 7 3 Heat Transferred 8696 | . . . . 990 . . . 962 222 187 259 333 1300 487 37 2642 1277 Parts Sabotaged 2 | . . . . . . . . . . . . . . . 2 . . Parts Stolen . | . . . . . . . . . . . . . . . . . . Parts Stripped . | . . . . . . . . . . . . . . . . . . Power Chain Reactions 4 | . . . . 2 . . . . . 1 . . 1 . . . . Missiles Intercepted . | . . . . . . . . . . . . . . . . . . Alert | -11 -10 -9 -8 -7 -7 -7 -6 -6 -6 -6 -6 -5 -4 -3 -3 -2 -1 ------- Run | Scr Mat Mat Mat Fac Low Low Fac Ext Cet Arc Hub Fac Fac Res Arm Res Acc Peak Influence 717 | 5 170 424 270 420 . . 199 717 672 465 521 351 520 414 319 538 679 Initial 344 | . 3 71 48 33 . . 113 21 344 268 162 235 90 273 109 162 294 Average 256 | . 79 244 164 199 . . 102 319 514 412 283 241 224 294 132 323 381 Maximum Alert Level 3 | . . 2 1 2 . . . 3 2 2 2 1 2 2 1 2 2 Low Security (%) 39 | 100 100 30 59 40 . . 100 19 . . 36 33 64 10 85 13 . Level 1 43 | . . 67 40 55 . . . 57 9 19 40 66 24 79 14 52 65 Level 2 17 | . . 2 . 3 . . . 21 90 80 22 . 11 9 . 33 34 Level 3 . | . . . . . . . . 2 . . . . . . . . . Level 4 . | . . . . . . . . . . . . . . . . . . Level 5 . | . . . . . . . . . . . . . . . . . . High Security . | . . . . . . . . . . . . . . . . . . Max Security . | . . . . . . . . . . . . . . . . . . Squads Dispatched 28 | . 3 1 1 3 . . . 1 . . 3 . 5 2 1 3 5 Investigation 11 | . 2 . . 1 . . . . . . 2 . 3 . 1 . 2 Extermination 6 | . . . . . . . . . . . . . 2 1 . 1 2 Reinforcement 11 | . 1 1 1 2 . . . 1 . . 1 . . 1 . 2 1 Assault . | . . . . . . . . . . . . . . . . . . Garrison . | . . . . . . . . . . . . . . . . . . Intercept . | . . . . . . . . . . . . . . . . . . Searches Triggered 5 | . . . . . . . . . . . . . . . . 1 4 Construction Impeded 1 | . . . . . . . . . . . . . . 1 . . . Haulers Reinforced 3 | . . . . 2 . . . . . . 1 . . . . . . Active Scanning Responses . | . . . . . . . . . . . . . . . . . . Cargo Convoy Interrupts . | . . . . . . . . . . . . . . . . . . Stealth | -11 -10 -9 -8 -7 -7 -7 -6 -6 -6 -6 -6 -5 -4 -3 -3 -2 -1 --------- Run | Scr Mat Mat Mat Fac Low Low Fac Ext Cet Arc Hub Fac Fac Res Arm Res Acc Distress Signals 7 | . 2 1 1 . . . . . 2 . . . . . . . 1 Communications Jammed 184 | . . . . . . . 1 20 133 . 11 10 . . 9 . . Distress Signals 182 | . . . . . . . 1 20 133 . 9 10 . . 9 . . Times Spotted 301 | . 16 13 11 29 3 5 7 29 11 4 15 6 19 10 14 41 68 Peak Tracking Total 10 | . 4 4 3 6 2 4 2 6 5 2 10 3 5 5 10 9 9 Tactical Retreats 33 | . . 1 . 2 2 1 . 1 . . . . . . 1 12 13 Traps | -11 -10 -9 -8 -7 -7 -7 -6 -6 -6 -6 -6 -5 -4 -3 -3 -2 -1 ------- Run | Scr Mat Mat Mat Fac Low Low Fac Ext Cet Arc Hub Fac Fac Res Arm Res Acc Traps Triggered 15 | . 1 . . 1 . . . 2 . . 1 . 2 3 2 . 3 Indirectly . | . . . . . . . . . . . . . . . . . . Trap Hack Attempts . | . . . . . . . . . . . . . . . . . . Triggered . | . . . . . . . . . . . . . . . . . . Disarmed . | . . . . . . . . . . . . . . . . . . Reprogrammed . | . . . . . . . . . . . . . . . . . . Reused . | . . . . . . . . . . . . . . . . . . Traps Extracted . | . . . . . . . . . . . . . . . . . . Installed . | . . . . . . . . . . . . . . . . . . Triggered . | . . . . . . . . . . . . . . . . . . Machines | -11 -10 -9 -8 -7 -7 -7 -6 -6 -6 -6 -6 -5 -4 -3 -3 -2 -1 ---------- Run | Scr Mat Mat Mat Fac Low Low Fac Ext Cet Arc Hub Fac Fac Res Arm Res Acc Machines Disabled 24 | . 3 3 . . . . . 3 . 3 1 . 7 1 1 . 2 Max in Single Turn 4 | . 1 1 . . . . . . . 2 1 . 4 1 1 . 1 Garrison Access 4 | . . . . . . . . . . . . . . . . . 4 Network Hub 1 | . . . . . . . . . . . 1 . . . . . . Machines Sabotaged 1 | . . . . . . . . . . . 1 . . . . . . Garrisons Compromised . | . . . . . . . . . . . . . . . . . . Overloaded Fab Kills . | . . . . . . . . . . . . . . . . . . Hacking | -11 -10 -9 -8 -7 -7 -7 -6 -6 -6 -6 -6 -5 -4 -3 -3 -2 -1 --------- Run | Scr Mat Mat Mat Fac Low Low Fac Ext Cet Arc Hub Fac Fac Res Arm Res Acc Machines Accessed 74 | . 4 3 1 8 . . 5 12 1 . 2 . 13 . 4 5 16 Terminals 52 | . 3 3 . 4 . . 2 12 1 . 2 . 8 . 3 5 9 Fabricators 6 | . . . . 2 . . 1 . . . . . 3 . . . . Repair Stations 7 | . . . 1 1 . . . . . . . . 1 . 1 . 3 Recycling Units 4 | . 1 . . 1 . . 1 . . . . . 1 . . . . Scanalyzers . | . . . . . . . . . . . . . . . . . . Garrison Access 5 | . . . . . . . 1 . . . . . . . . . 4 Total Hacks 193 | . 6 7 3 21 . . 15 20 2 . 3 . 51 . 11 16 38 Successful 85 | . 4 3 2 12 . . 5 10 1 . 2 . 19 . 4 7 16 Failed 108 | . 2 4 1 9 . . 10 10 1 . 1 . 32 . 7 9 22 Catastrophic 17 | . . 1 . 1 . . 2 2 . . . . 6 . 1 1 3 Database Lockouts . | . . . . . . . . . . . . . . . . . . Manual 71 | . 2 . . 14 . . 5 5 1 . 3 . 25 . . 8 8 Terminals 129 | . 5 7 . 10 . . 5 20 2 . 3 . 31 . 7 16 23 Fabricators 18 | . . . . 4 . . 4 . . . . . 10 . . . . Repair Stations 24 | . . . 3 3 . . . . . . . . 5 . 4 . 9 Recycling Units 14 | . 1 . . 4 . . 4 . . . . . 5 . . . . Scanalyzers . | . . . . . . . . . . . . . . . . . . Garrison Access 8 | . . . . . . . 2 . . . . . . . . . 6 Terminal Hacks 35 | . 2 3 . 1 . . . 9 1 . . . 6 . 3 4 6 Record 1 | . . . . . . . . . . . . . . . . . 1 Part Schematic 1 | . . . . . . . . . . . . . 1 . . . . Robot Analysis 2 | . . . . . . . . . . . . . . . 1 . 1 Prototype ID Bank 1 | . . 1 . . . . . . . . . . . . . . . Open Door 12 | . . . . . . . . 9 1 . . . . . 1 . 1 Level Access Points 3 | . . 1 . . . . . . . . . . 1 . . 1 . Branch Access Points 1 | . . . . . . . . . . . . . 1 . . . . Machine Index 3 | . . . . 1 . . . . . . . . . . . 1 1 Terminal Index 1 | . . . . . . . . . . . . . 1 . . . . Recycling Unit Index 2 | . . . . . . . . . . . . . 1 . . 1 . Unreport Threat 2 | . . 1 . . . . . . . . . . . . . . 1 Locate Traps 1 | . 1 . . . . . . . . . . . . . . . . Recall Investigation 1 | . . . . . . . . . . . . . 1 . . . . Registered Components 2 | . 1 . . . . . . . . . . . . . . 1 . Zone Layout 2 | . . . . . . . . . . . . . . . 1 . 1 Fabricator Hacks 6 | . . . . 2 . . 1 . . . . . 3 . . . . Network Status 3 | . . . . 1 . . 1 . . . . . 1 . . . . Load Schematic 1 | . . . . . . . . . . . . . 1 . . . . Build 2 | . . . . 1 . . . . . . . . 1 . . . . Repair Station Hacks 9 | . . . 2 2 . . . . . . . . 1 . 1 . 3 Scan Component 6 | . . . 1 1 . . . . . . . . 1 . 1 . 2 Repair 3 | . . . 1 1 . . . . . . . . . . . . 1 Recycling Unit Hacks . | . . . . . . . . . . . . . . . . . . Scanalyzer . | . . . . . . . . . . . . . . . . . . Garrison Access Hacks 4 | . . . . . . . . . . . . . . . . . 4 Seal Access 4 | . . . . . . . . . . . . . . . . . 4 Unauthorized Hacks 31 | . 2 . . 7 . . 4 1 . . 2 . 9 . . 3 3 Terminals 17 | . 1 . . 2 . . 1 1 . . 2 . 4 . . 3 3 Assimilate 1 | . . . . 1 . . . . . . . . . . . . . Botnet 11 | . . . . 1 . . 1 1 . . 1 . 3 . . 1 3 Disrupt 1 | . . . . . . . . . . . . . . . . 1 . Operators 3 | . 1 . . . . . . . . . . . 1 . . 1 . Sabotage 1 | . . . . . . . . . . . 1 . . . . . . Fabricators 2 | . . . . . . . . . . . . . 2 . . . . Prioritize 1 | . . . . . . . . . . . . . 1 . . . . Haulers 1 | . . . . . . . . . . . . . 1 . . . . Repair Stations 1 | . . . . 1 . . . . . . . . . . . . . Mechanics 1 | . . . . 1 . . . . . . . . . . . . . Recycling Units 11 | . 1 . . 4 . . 3 . . . . . 3 . . . . Monitor 3 | . . . . 1 . . 1 . . . . . 1 . . . . Reject 3 | . . . . 1 . . 1 . . . . . 1 . . . . Recyclers 3 | . . . . 1 . . 1 . . . . . 1 . . . . Mask 1 | . . . . 1 . . . . . . . . . . . . . Tunnel 1 | . 1 . . . . . . . . . . . . . . . . Scanalyzers . | . . . . . . . . . . . . . . . . . . Garrison Access . | . . . . . . . . . . . . . . . . . . Data Cores Recovered . | . . . . . . . . . . . . . . . . . . Used . | . . . . . . . . . . . . . . . . . . Hacking Detections 54 | . 2 2 1 6 . . 5 6 . . 1 . 11 . 3 4 13 Full Trace Events 6 | . . . . 1 . . . . . . . . 3 . 1 . 1 Feedback Events . | . . . . . . . . . . . . . . . . . . Feedback Blocked . | . . . . . . . . . . . . . . . . . . Robot Schematics Acquired . | . . . . . . . . . . . . . . . . . . Robots Built . | . . . . . . . . . . . . . . . . . . Authchips . | . . . . . . . . . . . . . . . . . . Time . | . . . . . . . . . . . . . . . . . . Total Robot Build Rating . | . . . . . . . . . . . . . . . . . . Part Schematics Acquired 1 | . . . . . . . . . . . . . 1 . . . . Parts Built 2 | . . . . 1 . . . . . . . . 1 . . . . Authchips . | . . . . . . . . . . . . . . . . . . Time 74 | . . . . 53 . . . . . . . . 21 . . . . Total Part Build Rating 10 | . . . . 6 . . . . . . . . 4 . . . . Parts Repaired 3 | . . . 1 1 . . . . . . . . . . . . 1 Time 106 | . . . 60 26 . . . . . . . . . . . . 20 Parts Recycled . | . . . . . . . . . . . . . . . . . . Recycled Matter . | . . . . . . . . . . . . . . . . . . Retrieved Matter . | . . . . . . . . . . . . . . . . . . Retrieved Components . | . . . . . . . . . . . . . . . . . . Parts Scanalyzed . | . . . . . . . . . . . . . . . . . . Part Schematics Acquired . | . . . . . . . . . . . . . . . . . . Parts Damaged . | . . . . . . . . . . . . . . . . . . Bothacking | -11 -10 -9 -8 -7 -7 -7 -6 -6 -6 -6 -6 -5 -4 -3 -3 -2 -1 ------------ Run | Scr Mat Mat Mat Fac Low Low Fac Ext Cet Arc Hub Fac Fac Res Arm Res Acc Used RIF Installer . | . . . . . . . . . . . . . . . . . . Robots Hacked . | . . . . . . . . . . . . . . . . . . Non-combat . | . . . . . . . . . . . . . . . . . . Combat . | . . . . . . . . . . . . . . . . . . Robot Hacks Applied . | . . . . . . . . . . . . . . . . . . Relay Couplers Released . | . . . . . . . . . . . . . . . . . . Fabnet Peak Effective % . | . . . . . . . . . . . . . . . . . . Robots Rewired 12 | . . . . . . . . 10 . . . . . . 2 . . Allies Hacked . | . . . . . . . . . . . . . . . . . . Hacks Repelled . | . . . . . . . . . . . . . . . . . . Allies | -11 -10 -9 -8 -7 -7 -7 -6 -6 -6 -6 -6 -5 -4 -3 -3 -2 -1 -------- Run | Scr Mat Mat Mat Fac Low Low Fac Ext Cet Arc Hub Fac Fac Res Arm Res Acc Total Allies 29 | . . . . 1 . . . 21 5 . . . . . 2 . . Largest Group 15 | . . . . 1 . . . 15 13 10 6 . . . 2 . . Highest-Rated Group 766 | . . . . 10 . . . 555 766 670 446 . . . 95 . . Highest-Rated Ally 159 | . . . . 10 . . . 159 159 159 96 . . . 48 . . Total Orders . | . . . . . . . . . . . . . . . . . . Ally Attacks 273 | . . . . . . . . 126 67 27 39 . . . 14 . . Total Damage 6908 | . . . . . . . . 2591 1636 884 1262 . . . 535 . . Kills 51 | . . . . . . . . 22 14 5 7 . . . 3 . . Allies Corrupted 1 | . . . . . . . . . . . 1 . . . . . . Allies Melted 1 | . . . . . . . . . . . 1 . . . . . . Intel | -11 -10 -9 -8 -7 -7 -7 -6 -6 -6 -6 -6 -5 -4 -3 -3 -2 -1 ------- Run | Scr Mat Mat Mat Fac Low Low Fac Ext Cet Arc Hub Fac Fac Res Arm Res Acc Robot Analysis Total 2 | . . . . . . . . . . . . . . . 1 . 1 Derelict Logs Recovered 2 | . . . . . 2 . . . . . . . . . . . . Drone Launches . | . . . . . . . . . . . . . . . . . . Drone Recoveries . | . . . . . . . . . . . . . . . . . . Exploration | -11 -10 -9 -8 -7 -7 -7 -6 -6 -6 -6 -6 -5 -4 -3 -3 -2 -1 ------------- Run | Scr Mat Mat Mat Fac Low Low Fac Ext Cet Arc Hub Fac Fac Res Arm Res Acc Turns Passed 9921 | 94 583 535 430 749 496 197 693 1256 348 169 345 601 768 492 395 708 1062 Spaces Moved 8799 | 57 372 332 261 658 474 171 561 803 236 107 235 450 524 339 432 857 1930 Core 10 | 10 . . . . . . . . . . . . . . . . . Treads . | . . . . . . . . . . . . . . . . . . Legs 1043 | 47 372 295 220 109 . . . . . . . . . . . . . Wheels 4425 | . . 37 41 355 474 171 561 803 236 107 235 450 524 339 92 . . Hover 3127 | . . . . . . . . . . . . . . . 340 857 1930 Flight 194 | . . . . 194 . . . . . . . . . . . . . Fastest Speed 26 | 50 120 100 100 26 80 95 86 100 100 130 115 115 115 100 40 36 32 Average Speed 85 | 107 120 118 118 79 93 95 96 102 116 130 121 115 116 117 65 58 40 Slowest Speed 435 | 120 120 120 190 435 95 95 100 115 130 130 130 115 130 130 115 148 133 Overloaded Moves . | . . . . . . . . . . . . . . . . . . Propulsion Burnouts . | . . . . . . . . . . . . . . . . . . Robots Hopped . | . . . . . . . . . . . . . . . . . . Cave-ins Triggered . | . . . . . . . . . . . . . . . . . . Exploration Rate (%) 34 | 5 52 27 20 22 59 21 17 83 67 81 30 14 17 8 27 22 45 Regions Visited 17 Branch Regions 7 Pre-discovered Areas 1 | . 1 . . . . . . . . . . . . . . . . Known Exits Taken 9 | . . 1 1 1 . . . . . . 1 1 1 1 1 1 . Unknown Exits Taken 8 | 1 1 . . . 1 1 1 1 1 1 . . . . . . . Scrap Searched 3 | . . . . . 2 1 . . . . . . . . . . . Spaces Dug 9 | . . . . . . . . . . . 3 2 4 . . . . Terrain Destroyed 143 | . 1 . . 14 . . . . 1 6 5 7 67 38 . . 4 Melee . | . . . . . . . . . . . . . . . . . . Projectile 49 | . 1 . . . . . . . 1 2 5 7 22 7 . . 4 AOE 94 | . . . . 14 . . . . . 4 . . 45 31 . . . Terrain Rammed . | . . . . . . . . . . . . . . . . . . Walls Destroyed . | . . . . . . . . . . . . . . . . . . Machines Disabled . | . . . . . . . . . . . . . . . . . . Actions | -11 -10 -9 -8 -7 -7 -7 -6 -6 -6 -6 -6 -5 -4 -3 -3 -2 -1 --------- Run | Scr Mat Mat Mat Fac Low Low Fac Ext Cet Arc Hub Fac Fac Res Arm Res Acc Total 10314 | 71 444 395 335 784 504 185 669 1166 293 123 271 497 595 387 518 976 2101 Wait 478 | . 10 13 35 21 8 2 55 151 32 5 13 9 22 2 21 38 41 Move 8782 | 56 371 331 260 657 473 170 560 802 235 106 234 449 523 339 431 856 1929 Hop . | . . . . . . . . . . . . . . . . . . Pick Up . | . . . . . . . . . . . . . . . . . . Fast Attach 214 | 7 8 6 9 26 3 1 14 13 9 2 1 8 12 20 15 23 37 Attach . | . . . . . . . . . . . . . . . . . . Detach . | . . . . . . . . . . . . . . . . . . Swap 51 | . 6 2 2 5 1 . 4 9 2 1 1 3 . 1 1 2 11 Drop 146 | . 13 5 4 20 3 1 12 21 8 3 2 9 2 7 9 7 20 Fire 419 | 8 36 38 24 55 16 11 24 33 7 6 11 17 36 18 17 37 25 Melee 25 | . . . . . . . . . . . . . . . . . 25 Ram 16 | . . . . . . . . . . . 1 2 . . . 13 . Kick 1 | . . . 1 . . . . . . . . . . . . . . Crush . | . . . . . . . . . . . . . . . . . . Escape Stasis 45 | . . . . . . . . 8 . . 8 . . . 16 . 13 Rewire 137 | . . . . . . . . 129 . . . . . . 8 . . Trap . | . . . . . . . . . . . . . . . . . . Miscellaneous . | . . . . . . . . . . . . . . . . . . Route ------- -11/Scrapyard -10/Materials (discovered 2 exits: *Mat / [*Min]) -9/Materials (discovered 4 exits: *Mat x3 / [*Min]) -8/Materials -7/Factory (discovered 2 exits: *Fac / *Low) -7/Lower Caves -7/Lower Caves -6/Factory (discovered 3 exits: Fac x2 / *Ext) -6/Extension (discovered 2 exits: *Fac / *Cet) -6/Cetus (discovered 2 exits: *Fac / [*Arc]) -6/Archives (discovered 3 exits: *Fac / *Hub x2) -6/Hub_04(d) (discovered 2 exits: *Fac x2) -5/Factory -4/Factory (discovered 6 exits: *Res x4 / Upp x2) -3/Research -3/Armory -2/Research (discovered 3 exits: *Acc x3) -1/Access To Epsilon Eridani History --------- Turn | Location | Event 6 | -11/Scrapyard | Discovered new exit (range 15) 95 | -11/Scrapyard | Entered Materials 196 | -10/Materials | Discovered new exit (range 6) 268 | -10/Materials | Core integrity fell below 50% 323 | -10/Materials | Build established: Mutant 660 | -10/Materials | Discovered new exit (range 16) 678 | -10/Materials | Entered another Materials area 678 | -9/Materials | Evolved 2 slots: Propulsion x1, Utility x1 778 | -9/Materials | Destroyed 7 combat bots 785 | -9/Materials | Build established: Scavenger-Mutant 818 | -9/Materials | Discovered new exit (range 16) 983 | -9/Materials | Identified exit to Materials 1213 | -9/Materials | Entered another Materials area 1213 | -8/Materials | Evolved 2 slots: Utility x1, Weapon x1 1530 | -8/Materials | Discovered new exit (range 3) 1537 | -8/Materials | Identified exit to Factory 1570 | -8/Materials | Repaired Enh. Autogun? 1643 | -8/Materials | Entered Factory 1643 | -7/Factory | Evolved 2 slots: Power x1, Propulsion x1 1907 | -7/Factory | Build established: Scavenger-Gunner 1965 | -7/Factory | Destroyed 9 combat bots 2095 | -7/Factory | Fabricated Adv. System Shield (x1) 2167 | -7/Factory | Repaired Lgt. Ion Engine 2270 | -7/Factory | Lost 4 parts (2n1u1w) 2348 | -7/Factory | Discovered new exit (range 15) 2380 | -7/Factory | Identified exit to Lower Caves 2392 | -7/Factory | Discovered new exit (range 15) 2392 | -7/Factory | Entered Lower Caves 2535 | -7/Lower Caves | Encountered a Warlord checkpoint 2556 | -7/Lower Caves | Learned location of 1 exit from Factory 2612 | -7/Lower Caves | Learned location of 1 exit from Factory 2878 | -7/Lower Caves | Discovered new exit (range 12) 2888 | -7/Lower Caves | Entered another Lower Caves area 2890 | -7/Lower Caves | Attracted the attention of an 0b10 checkpoint 2932 | -7/Lower Caves | Discovered new exit (range 12) 2984 | -7/Lower Caves | Encountered a Warlord checkpoint 3085 | -7/Lower Caves | Entered Factory 3085 | -6/Factory | Evolved 2 slots: Propulsion x1, Utility x1 3086 | -6/Factory | Identified exit to Factory 3491 | -6/Factory | Discovered new exit (range 15) 3778 | -6/Factory | Entered Extension 3810 | -6/Extension | Rescued a captive Derelict 3811 | -6/Extension | Rescued a captive Derelict 3821 | -6/Extension | Rescued a captive Derelict 3826 | -6/Extension | Rescued a captive Derelict 3827 | -6/Extension | Rescued a captive Derelict 3831 | -6/Extension | Build established: Scavenger-Mutant 3861 | -6/Extension | Rescued A7 3897 | -6/Extension | Rescued a captive Derelict 3961 | -6/Extension | Rescued a captive Derelict 3967 | -6/Extension | Rescued a captive Derelict 4149 | -6/Extension | Build established: Scavenger-Gunner 4277 | -6/Extension | Spotted B-75 Beast 4291 | -6/Extension | Allies destroyed B-75 Beast 4296 | -6/Extension | Spotted B-75 Beast 4307 | -6/Extension | Allies destroyed B-75 Beast 4403 | -6/Extension | Disrupted transfer network 4422 | -6/Extension | Rescued a captive Derelict 4648 | -6/Extension | Rescued a captive Derelict 4907 | -6/Extension | Discovered exit to Factory (range 10) 4908 | -6/Extension | Discovered new exit (range 6) 5034 | -6/Extension | Entered Cetus 5034 | -6/Cetus | Accompanied by 13 allies (A7) 5039 | -6/Cetus | Acquired a Cetus Manufacturing Module code from A7 5051 | -6/Cetus | Spotted Cetus Guard 5051 | -6/Cetus | Spotted Cetus Guard 5052 | -6/Cetus | Spotted Cetus Guard 5061 | -6/Cetus | Allies destroyed Cetus Guard 5062 | -6/Cetus | Spotted Cetus Guard 5065 | -6/Cetus | Allies destroyed Cetus Guard 5066 | -6/Cetus | Allies destroyed Cetus Guard 5074 | -6/Cetus | Allies destroyed Cetus Guard 5134 | -6/Cetus | Started Cetus Manufacturing Module 5150 | -6/Cetus | Discovered new exit (range 15) 5159 | -6/Cetus | Manufactured an Enhanced Grunt 5184 | -6/Cetus | Manufactured an Enhanced Grunt 5209 | -6/Cetus | Manufactured an Enhanced Grunt 5213 | -6/Cetus | Spotted Cetus Guard 5213 | -6/Cetus | Spotted Cetus Guard 5214 | -6/Cetus | Spotted Cetus Guard 5221 | -6/Cetus | Spotted Cetus Guard 5221 | -6/Cetus | Allies destroyed Cetus Guard 5227 | -6/Cetus | Discovered exit to Factory (range 16) 5233 | -6/Cetus | Allies destroyed Cetus Guard 5234 | -6/Cetus | Manufactured an Enhanced Grunt 5235 | -6/Cetus | Allies destroyed Cetus Guard 5238 | -6/Cetus | Allies destroyed Cetus Guard 5240 | -6/Cetus | Met Revision 17 5259 | -6/Cetus | Manufactured an Enhanced Grunt 5342 | -6/Cetus | Escorted A7 to Cetus Mainframe 5382 | -6/Cetus | Entered Archives 5382 | -6/Archives | Accompanied by 10 allies (A7) 5387 | -6/Archives | Received a hacking code to weaken MAIN.C 5429 | -6/Archives | Discovered new exit (range 16) 5452 | -6/Archives | Discovered exit to Factory (range 14) 5505 | -6/Archives | Discovered new exit (range 15) 5551 | -6/Archives | Entered Hub_04(d) 5551 | -6/Hub_04(d) | Accompanied by 6 allies 5771 | -6/Hub_04(d) | Discovered exit to Factory (range 16) 5803 | -6/Hub_04(d) | Build established: Scavenger-Mutant 5805 | -6/Hub_04(d) | Discovered exit to Factory (range 8) 5854 | -6/Hub_04(d) | Network Hub disabled 5861 | -6/Hub_04(d) | Spotted Lightning 5861 | -6/Hub_04(d) | Spotted Lightning 5862 | -6/Hub_04(d) | Spotted Lightning 5896 | -6/Hub_04(d) | Entered Factory 5896 | -5/Factory | Evolved 2 slots: Utility x2 6197 | -5/Factory | Build established: Scavenger-Gunner 6435 | -5/Factory | Discovered new exit (range 6) 6440 | -5/Factory | Identified exit to Factory 6497 | -5/Factory | Entered another Factory area 6497 | -4/Factory | Evolved 2 slots: Utility x2 6541 | -4/Factory | Identified exit to Research 6770 | -4/Factory | Identified exit to Upper Caves 7147 | -4/Factory | Build established: Scavenger-Tank 7163 | -4/Factory | Fabricated Transmission Jammer (x1) 7175 | -4/Factory | System corruption reached 10% 7223 | -4/Factory | Lost 6 parts (1n4u1w) 7265 | -4/Factory | Entered Research 7265 | -3/Research | Evolved 2 slots: Propulsion x1, Utility x1 7631 | -3/Research | System corruption reached 10% 7678 | -3/Research | Lost 9 parts (2p3n2u2w) 7743 | -3/Research | Discovered new exit (range 13) 7756 | -3/Research | Identified exit to Armory 7757 | -3/Research | Entered Armory 8149 | -3/Armory | Discovered new exit (range 3) 8150 | -3/Armory | Identified exit to Research 8151 | -3/Armory | Spotted B-86 Titan 8152 | -3/Armory | Entered Research 8152 | -2/Research | Evolved 2 slots: Power x1, Propulsion x1 8228 | -2/Research | Lost 3 parts (3u) 8357 | -2/Research | Lost 4 parts (1p3u) 8502 | -2/Research | Found Prototype Device 8502 | -2/Research | Identified Exp. Focal Shield 8524 | -2/Research | Lost 3 parts (1n2u) 8527 | -2/Research | Found Prototype Processor 8527 | -2/Research | Identified Exp. Targeting Computer 8652 | -2/Research | Search patrols dispatched 8725 | -2/Research | Identified exit to Access 8860 | -2/Research | Entered Access 8860 | -1/Access | Evolved 2 slots: Propulsion x1, Utility x1 8881 | -1/Access | Spotted B-99 Colossus 9057 | -1/Access | Spotted B-99 Colossus 9110 | -1/Access | Search patrols dispatched 9180 | -1/Access | Lost 3 parts (1n2u) 9360 | -1/Access | Search patrols dispatched 9397 | -1/Access | Lost 3 parts (1n2u) 9400 | -1/Access | Found Enh. Force Lance 9589 | -1/Access | Lost 5 parts (2p2u1w) 9610 | -1/Access | Search patrols dispatched 9806 | -1/Access | Lost 6 parts (1p3u2w) 9816 | -1/Access | Repaired Graphene Brace 9860 | -1/Access | Search patrols dispatched 9919 | -1/Access | Discovered new exit (range 7) 9922 | -1/Access | Identified exit to Surface 9922 | *** | Escaped! Last Messages --------------- 09900_ Slug penetrates Wall. 09900_ Penetrated by Slug. 09900_ Wave Collapse Detector explodes. 09900_ Imp. Antigrav System destroyed. 09901_ Acquired Adv. Target Analyzer. 09904_ Rnf. Quantum Reactor destroyed. 09906_ The unstable cave ceiling collapses. 09906_ Adv. ECM Suite destroyed. 09906_ Slug penetrates Wall. 09917_ Connecting with Terminal... >>Open(Door) Sealed Barrier opened. 09919_ Terminal disabled. 09919_ ALERT: Suspicious intruders detected, dispatching Cutter reinforcements to area. 09919_ The Access Shell folds into the floor. 09919_ EXIT=FOUND 09922_ EXIT=IDENTIFIED: SURFACE [Achievement: Light Traveler] [Achievement: This Only Looks Like Junk] Map ----- +----------------------------------------------------+ | ?????????????????????????????????????????????????? | | ?????????????????????????????????????????????????? | | ?????????????????????????????????????????????????? | | ?????????????????????????????????????????????????? | | ?????????????????????????????????????????????????? | | ?????????????????????????????????????????????????? | | ?????????????????????????????????????????????????? | | ?????????????????????????????????????????????????? | | ?????????????????????????????????????????????????? | | ?????????????????????????????????????????????????? | | ?????????? ?????????????????????????????????????? | | ?????????? ????????????????H???????????????????? | | ?????????? ????????????????????????????????????? | | ??????????# ????????????????????????????????????? | | ??????????# ??????????????????????????????? ## | | ??????????# ??????????????????????????????? ## | | ??????????# #?????????????????????????????? ## | | ??????????# #?????????????????????????????? ## | | ??????????# #?????###????????????????####?? ## | | ??????????# ####### ##########???????####?? # | | ??????????# """T""" "??????? #?? # | | ??????????# """ " " "???????? ### # | | ?????????## "????????? ### # | | ?????????## "????????? # | | ?????????## "" "????????? # | | ?????????## @" "?????????? + | | ?????????## "????????? # | | ?????????## "????????? # # | | ?????????## "????????? # # | | ?????????## p "????????? # # | | ?????????##p ####### ##########?????????## # | | ?????????## ##????####################### ## | | ?????????## ##???????#################### | | ?????????## ##???????## + ## | | ?????????## ##???????## #####++#+## | | ?????????## ##???????## # | | ?????????## ##???????## # | | ## ## ##???????## # | | ########### ##???????## # """"""" | | # ##???????## # """"""" | | # ##???????##[ # | | """"" # ##???????## = # | | """""""" # ########### # | | """""""" # #################+######### | | """"" + ^ + | | # ! ###### | | # %###################+####### | | #|!# ##### ?? #########+# | | # |/ / ? ?? ######### # | | """ """ # ##### "" ??? ##?????## # | +----------------------------------------------------+ Best States ------------- Heat Dissipation 136 Coolant Potential 100 Energy Generation 65 Energy Capacity 850 Matter Stores 300 Matter Capacity 300 Sight Range 20 Robot Scan Range 18 Terrain Scan Range 24 Terrain Scan Density 10 ECM Strength 2 Jamming Range 14 Power Amplification 20 Armor Coverage 600 Resistance: KI 30 Resistance: EM 15 Propulsion Shielding 66 Utility Shielding 66 Phase Shifting 15 Evasion (%) 68 Targeting Accuracy 8 Melee Accuracy 6 Target Analysis 8 Core Analysis 6 Recoil Reduction 1 Salvage Targeting 1 Offensive Hacking 20 Defensive Hacking 14 Item Schematics ----------------- Transmission Jammer | -4/Factory | Hacked Robot Schematics ------------------ None Fabricated ------------ Adv. System Shield | x1 | -7/Factory | Preloaded Transmission Jammer | x1 | -4/Factory Alien Tech Used ----------------- None Achievements -------------- Light Traveler This Only Looks Like Junk Challenges ------------ Pure Core Scavenger Game ------ Seed LightpackImprinterBlaster Manual? 0 Play Time 02:16:31 Cumulative 257.1 hours Start 2022.11.11 @ 01:47:28 End 2022.11.11 @ 04:07:48 Sessions 1 Manual Loads 0 Difficulty Rogue Special Mode None Game No. 178 Rogue 155 Adventurer 6 Explorer 17 Win Type 0 Total 20 Types 13/0/3/1/0/1/1/1/0 Lore% 93 Gallery% 92 Achievement% 73 Wizard Run 0 Options --------- ASCII 0 Keyboard 0 Movement Numpad Keybinds 0 Fullscreen 1 Font 12/Fuzzy Map View 83x54 Tactical HUD 1 Map Filters NONE Filters NONE Steam 1 RUN: d6ea872c-e2b1-4579-965f-48eae76e8f7f